Cogmind - Beta 11 X9 @@@ ROGUE MODE // 2021.12.26 @ 14:29:53 // Winter2021/Sauler Player: Yosh Result: Destroyed by exploding Plasma Injector Performance ------------- Evolutions (1) 500 Regions Visited (6) 1200 Robots Destroyed (44) 220 Value Destroyed (1047) 1047 Prototype IDs (28) 560 Alien Tech Used (0) 0 Bonus (300) 300 TOTAL SCORE: 3827 Bonus ------- Aligned with FarCom 300 Cogmind --------- Core Integrity 0/400 Matter 299/300 Energy 125/125 System Corruption 0% Temperature Cool (24) Movement Rolling (95) Ox1 Location -8/Mines Parts ------- > --- POWER (1) -------- Light Ion Engine > --- PROPULSION (3) --- Wheel > --- UTILITY (3) ------ Improved Heat Sink Medium Storage Unit Targeting Computer > --- WEAPON (2) ------- Light Assault Rifle > --- INVENTORY (10) --- Light Ion Engine Improved Flight Unit Lightpack 2.0 Hacking Suite Hacking Suite Mini Grenade Launcher Plasma Cutter Maul Peak State ------------ > --- POWER ------------ Improved Ion Engine > --- PROPULSION ------- Light Treads Light Treads Light Treads > --- UTILITY ---------- Improved Heat Sink Medium Storage Unit Targeting Computer > --- WEAPON ----------- Particle Cannon Heavy Assault Rifle > --- INVENTORY -------- Light Ion Engine Light Treads Light Treads High-capacity Matter Pod Experimental Sensor Array Hacking Suite Hacking Suite Beam Rifle Particle Cannon Autogun [Rating: 16] Favorites ----------- Power Light Ion Engine Engine Light Ion Engine Propulsion Light Treads Treads Light Treads Wheel Wheel Utility Targeting Computer Device Improved Heat Sink Storage Medium Storage Unit Processor Targeting Computer Weapon Particle Cannon Energy Gun Medium Laser Energy Cannon Particle Cannon Ballistic Gun Assault Rifle Launcher Rocket Launcher Build | -11 -10 -10 -9 -9 -9 -8 ------- Run | Scr Mat Min Mat Min Exi Min Slots Evolved 2 | . . . 2 . . . Power . | . . . . . . . Propulsion 1 | . . . 1 . . . Utility 1 | . . . 1 . . . Weapon . | . . . . . . . Parts Attached 41 | 6 2 2 13 15 1 2 Power 4 | 1 . . 2 1 . . Engine 4 | 1 . . 2 1 . . Core . | . . . . . . . Reactor . | . . . . . . . Propulsion 17 | 2 . . 7 8 . . Treads 10 | 2 . . 6 2 . . Leg . | . . . . . . . Wheel 7 | . . . 1 6 . . Hover . | . . . . . . . Flight . | . . . . . . . Utility 7 | 1 1 2 2 . 1 . Device 2 | . . 1 1 . . . Storage 4 | 1 . 1 1 . 1 . Processor 1 | . 1 . . . . . Hackware . | . . . . . . . Protection . | . . . . . . . Artifact . | . . . . . . . Weapon 13 | 2 1 . 2 6 . 2 Energy Gun 4 | 2 . . . 1 . 1 Energy Cannon 2 | . . . 1 1 . . Ballistic Gun 5 | . 1 . 1 2 . 1 Ballistic Cannon . | . . . . . . . Launcher 2 | . . . . 2 . . Special Weapon . | . . . . . . . Impact Weapon . | . . . . . . . Slashing Weapon . | . . . . . . . Piercing Weapon . | . . . . . . . Special Melee Weapon . | . . . . . . . Unidentified Prototypes 1 | . . 1 . . . . Parts Lost 19 | . 1 . 2 13 . 3 Power 1 | . . . . 1 . . Propulsion 11 | . . . 2 7 . 2 Utility . | . . . . . . . Weapon 7 | . 1 . . 5 . 1 Highest Loss Streak 8 | . 1 . 1 8 . 3 Average Slot Usage (%) 97 | . 95 100 99 88 100 99 Engine 11 | . 14 14 11 10 11 11 Treads 19 | . 28 28 28 10 . . Wheel 11 | . . . 3 18 33 32 Device 7 | . . . 11 11 11 11 Storage 11 | . 14 13 11 11 11 11 Processor 11 | . 9 14 11 11 11 11 Energy Gun 8 | . 27 14 1 . 11 10 Energy Cannon 4 | . . . 9 10 . . Ballistic Gun 9 | . . 14 11 4 11 11 Naked Turns . | . . . . . . . Heaviest Build 25 | 12 12 12 25 25 16 17 Greatest Support 60 | 40 40 40 60 60 30 30 Greatest Overweight (x) 3 | 3 . . 1 . . . Average Overweight (x) . | . . . . . . . Largest Inventory Capacity 10 | 8 8 8 10 10 10 10 Average Capacity 9 | 7 8 7 9 10 10 10 Most Carried 10 | 4 8 8 10 10 10 10 Average Carried 8 | 2 5 7 9 8 9 10 Final Capacity 10 | 8 8 8 10 10 10 10 Final Carried 10 | 4 7 8 10 9 10 10 Class Distribution -------------------- 58% | Scavenger-Mutant 41% | Mutant Dominant Class ---------------- Mutant | -10/Materials Mutant | -10/Mines Scavenger-Mutant | -9/Materials Scavenger-Mutant | -9/Mines Scavenger-Mutant | -9/Exiles Scavenger-Mutant | -8/Mines Resources | -11 -10 -10 -9 -9 -9 -8 ----------- Run | Scr Mat Min Mat Min Exi Min Matter Collected 1063 | 228 42 185 428 156 . 24 Remotely . | . . . . . . . Salvage Created 1405 | . 84 165 1016 86 . 54 Parts 98 | . 3 7 79 4 . 5 Haulers Intercepted 4 | . . . 4 . . . Recyclers Shooed 1 | . . . 1 . . . Parts Field Recycled . | . . . . . . . Retrieved Matter . | . . . . . . . Parts Self-Destructed . | . . . . . . . Prevented . | . . . . . . . Kills | -11 -10 -10 -9 -9 -9 -8 ------- Run | Scr Mat Min Mat Min Exi Min Combat Hostiles Destroyed 43 | . 2 4 24 10 . 3 Guns 17 | . 1 4 9 . . 3 Cannons 24 | . . . 15 9 . . AOE 2 | . 1 . . 1 . . Classes Destroyed 7 | . 2 . 3 2 . . Hauler 4 | . . . 4 . . . Operator 3 | . 1 . 2 . . . Swarmer 17 | . . . 11 3 . 3 Grunt 13 | . 2 4 7 . . . Sentry 6 | . . . 6 . . . Demolisher 1 | . . . . 1 . . Assembled 6 | . . . . 6 . . Best Kill Streak 6 | . 2 2 6 4 . 3 Combat Bots Only 4 | . 1 2 4 4 . 3 Max Kills in Single Turn 2 | . 2 1 2 1 . 1 Gunslinging 1 | . . . 1 . . . Exploded 1 | . 1 . . 1 . . Melee . | . . . . . . . Uniques/NPCs Destroyed . | . . . . . . . Combat | -11 -10 -10 -9 -9 -9 -8 -------- Run | Scr Mat Min Mat Min Exi Min Damage Taken 2707 | . 109 212 783 1333 . 270 Core 456 | . 10 35 122 205 . 84 Absorbed by Shields . | . . . . . . . Core Remaining (%) 91 | 100 . 82 . . . . Volleys Fired 148 | . 5 13 73 47 . 10 Largest 2 | . 2 2 2 2 . 2 Hottest 98 | . 90 70 91 98 . 60 Shots Fired 257 | . 10 26 145 60 . 16 Gun 149 | . 10 26 81 16 . 16 Cannon 105 | . . . 64 41 . . Launcher 3 | . . . . 3 . . Special . | . . . . . . . Kinetic 111 | . . 13 72 16 . 10 Thermal 136 | . 5 13 73 41 . 4 Explosive 3 | . . . . 3 . . Electromagnetic 7 | . 5 . . . . 2 Robot Hit Streak 18 | . 3 13 18 8 . 4 Robot Miss Streak 4 | . 1 1 3 4 . 3 Penetration Max . | . . . . . . . Secondary Targets 4 | . . 1 1 . . 2 Max Gunslinging Chain 1 | . . 1 1 . . 1 Shots Hit Robots 167 | . 7 23 92 33 . 12 Core Hits 73 | . 4 10 34 17 . 8 Critical Kills 1 | . . . 1 . . . Critical Parts Destroyed 1 | . . . . 1 . . Critical Strikes 4 | . 1 1 1 1 . . Burn 2 | . 1 1 . . . . Destroy 2 | . . . 1 1 . . Melee Attacks . | . . . . . . . Impact . | . . . . . . . Slashing . | . . . . . . . Piercing . | . . . . . . . Sneak Attacks . | . . . . . . . Combat Hostiles . | . . . . . . . Follow-up Attacks . | . . . . . . . Damage Inflicted 2974 | . 159 285 1588 844 . 98 Guns 1161 | . 78 285 622 78 . 98 Cannons 1456 | . . . 965 491 . . Explosions 352 | . 77 . . 275 . . Melee . | . . . . . . . Ramming 5 | . 4 . 1 . . . Kinetic 809 | . . 136 545 78 . 50 Thermal 1819 | . 115 149 1042 491 . 22 Explosive 275 | . . . . 275 . . Electromagnetic 66 | . 40 . . . . 26 Impact . | . . . . . . . Slashing . | . . . . . . . Piercing . | . . . . . . . Highest Corruption . | . . . . . . . Average Corruption . | . . . . . . . Corruption Purged . | . . . . . . . Overload Shots . | . . . . . . . Overflow Damage 20 | . . . 15 5 . . Projectiles 17 | . . . 15 2 . . Explosions 3 | . . . . 3 . . Melee . | . . . . . . . Knockbacks . | . . . . . . . Impact . | . . . . . . . Kinetic . | . . . . . . . Secondary . | . . . . . . . Self-Inflicted Damage 31 | . . . . 31 . . Shots 2 | . . . . 2 . . Rammed 2 | . 1 . 1 . . . Targets Rammed 2 | . 1 . 1 . . . Kicked . | . . . . . . . Crushed . | . . . . . . . Highest Temperature 126 | . 102 126 21 28 . . Average Temperature 33 | . 44 51 6 13 . . Received Heat Transfer 629 | . 78 126 252 161 . 12 Siege Activations . | . . . . . . . Robots Corrupted . | . . . . . . . Combat Hostiles . | . . . . . . . Parts Fried . | . . . . . . . Impact Corruptions . | . . . . . . . Robots Melted . | . . . . . . . Combat Hostiles . | . . . . . . . Parts Melted 6 | . 3 2 1 . . . Heat Transferred 3702 | . 285 518 1961 888 . 50 Parts Sabotaged . | . . . . . . . Parts Stolen . | . . . . . . . Parts Stripped . | . . . . . . . Power Chain Reactions 1 | . 1 . . . . . Missiles Intercepted . | . . . . . . . Alert | -11 -10 -10 -9 -9 -9 -8 ------- Run | Scr Mat Min Mat Min Exi Min Peak Influence 354 | . 91 111 354 158 . 85 Initial 138 | . . 11 . 138 . . Average 106 | . 25 59 192 72 . 83 Maximum Alert Level 1 | . . . 1 . . . Low Security (%) 83 | 100 100 100 52 100 . 100 Level 1 16 | . . . 47 . . . Level 2 . | . . . . . . . Level 3 . | . . . . . . . Level 4 . | . . . . . . . Level 5 . | . . . . . . . High Security . | . . . . . . . Max Security . | . . . . . . . Squads Dispatched 3 | . 1 . 2 . . . Investigation 1 | . . . 1 . . . Extermination . | . . . . . . . Reinforcement 2 | . 1 . 1 . . . Assault . | . . . . . . . Garrison . | . . . . . . . Intercept . | . . . . . . . Construction Impeded . | . . . . . . . Haulers Reinforced . | . . . . . . . Active Scanning Responses . | . . . . . . . Cargo Convoy Interrupts . | . . . . . . . Stealth | -11 -10 -10 -9 -9 -9 -8 --------- Run | Scr Mat Min Mat Min Exi Min Distress Signals 5 | . 1 . 4 . . . Communications Jammed . | . . . . . . . Distress Signals . | . . . . . . . Times Spotted 77 | . 10 4 41 18 . 4 Peak Tracking Total 8 | . 3 2 5 8 . 3 Tactical Retreats 5 | . . . 2 3 . . Traps | -11 -10 -10 -9 -9 -9 -8 ------- Run | Scr Mat Min Mat Min Exi Min Traps Triggered . | . . . . . . . Indirectly . | . . . . . . . Trap Hack Attempts . | . . . . . . . Triggered . | . . . . . . . Disarmed . | . . . . . . . Reprogrammed . | . . . . . . . Reused . | . . . . . . . Traps Extracted . | . . . . . . . Installed . | . . . . . . . Triggered . | . . . . . . . Machines | -11 -10 -10 -9 -9 -9 -8 ---------- Run | Scr Mat Min Mat Min Exi Min Machines Disabled 3 | . 1 . 2 . . . Max in Single Turn 1 | . 1 . 1 . . . Machines Sabotaged . | . . . . . . . Garrisons Compromised . | . . . . . . . Overloaded Fab Kills . | . . . . . . . Hacking | -11 -10 -10 -9 -9 -9 -8 --------- Run | Scr Mat Min Mat Min Exi Min Machines Accessed 11 | . 3 . 7 . 1 . Terminals 8 | . 3 . 5 . . . Fabricators . | . . . . . . . Repair Stations 1 | . . . 1 . . . Recycling Units . | . . . . . . . Scanalyzers 1 | . . . 1 . . . Garrison Access . | . . . . . . . Total Hacks 35 | . 16 . 18 . 1 . Successful 19 | . 10 . 8 . 1 . Failed 16 | . 6 . 10 . . . Catastrophic 2 | . . . 2 . . . Database Lockouts . | . . . . . . . Manual 20 | . 11 . 8 . 1 . Terminals 27 | . 16 . 11 . . . Fabricators . | . . . . . . . Repair Stations 2 | . . . 2 . . . Recycling Units . | . . . . . . . Scanalyzers 5 | . . . 5 . . . Garrison Access . | . . . . . . . Terminal Hacks 13 | . 8 . 4 . 1 . Prototype ID Bank 3 | . 2 . 1 . . . Scanalyzer Index 1 | . 1 . . . . . Unreport Threat 2 | . 1 . 1 . . . Transport Status 1 | . . . 1 . . . Recall Reinforcements 1 | . 1 . . . . . Hauler Manifests 2 | . 1 . 1 . . . Registered Components 1 | . 1 . . . . . Zone Layout 1 | . 1 . . . . . EX-Prototype ID Bank 1 | . . . . . 1 . Fabricator Hacks . | . . . . . . . Repair Station Hacks 1 | . . . 1 . . . Scan Component 1 | . . . 1 . . . Recycling Unit Hacks . | . . . . . . . Scanalyzer 3 | . . . 3 . . . Insert Component 2 | . . . 2 . . . Analyze 1 | . . . 1 . . . Garrison Access Hacks . | . . . . . . . Unauthorized Hacks 2 | . 2 . . . . . Terminals 2 | . 2 . . . . . Botnet 1 | . 1 . . . . . Operators 1 | . 1 . . . . . Fabricators . | . . . . . . . Repair Stations . | . . . . . . . Recycling Units . | . . . . . . . Scanalyzers . | . . . . . . . Garrison Access . | . . . . . . . Data Cores Recovered . | . . . . . . . Used . | . . . . . . . Hacking Detections 10 | . 3 . 7 . . . Full Trace Events 3 | . . . 3 . . . Feedback Events . | . . . . . . . Feedback Blocked . | . . . . . . . Robot Schematics Acquired . | . . . . . . . Robots Built . | . . . . . . . Authchips . | . . . . . . . Time . | . . . . . . . Total Robot Build Rating . | . . . . . . . Part Schematics Acquired 1 | . . . 1 . . . Parts Built . | . . . . . . . Authchips . | . . . . . . . Time . | . . . . . . . Total Part Build Rating . | . . . . . . . Parts Repaired . | . . . . . . . Time . | . . . . . . . Parts Recycled . | . . . . . . . Recycled Matter . | . . . . . . . Retrieved Matter . | . . . . . . . Retrieved Components . | . . . . . . . Parts Scanalyzed 2 | . . . 2 . . . Part Schematics Acquired 1 | . . . 1 . . . Parts Damaged . | . . . . . . . Bothacking | -11 -10 -10 -9 -9 -9 -8 ------------ Run | Scr Mat Min Mat Min Exi Min Used RIF Installer . | . . . . . . . Robots Hacked . | . . . . . . . Non-combat . | . . . . . . . Combat . | . . . . . . . Robot Hacks Applied . | . . . . . . . Relay Couplers Released . | . . . . . . . Fabnet Peak Effective % . | . . . . . . . Robots Rewired . | . . . . . . . Allies Hacked . | . . . . . . . Hacks Repelled . | . . . . . . . Allies | -11 -10 -10 -9 -9 -9 -8 -------- Run | Scr Mat Min Mat Min Exi Min Total Allies . | . . . . . . . Largest Group . | . . . . . . . Highest-Rated Group . | . . . . . . . Highest-Rated Ally . | . . . . . . . Total Orders . | . . . . . . . Ally Attacks . | . . . . . . . Total Damage . | . . . . . . . Kills . | . . . . . . . Allies Corrupted . | . . . . . . . Allies Melted . | . . . . . . . Intel | -11 -10 -10 -9 -9 -9 -8 ------- Run | Scr Mat Min Mat Min Exi Min Robot Analysis Total . | . . . . . . . Derelict Logs Recovered 4 | . . 2 . 2 . . Drone Launches . | . . . . . . . Drone Recoveries . | . . . . . . . Exploration | -11 -10 -10 -9 -9 -9 -8 ------------- Run | Scr Mat Min Mat Min Exi Min Turns Passed 3560 | 71 455 584 1125 523 411 391 Spaces Moved 2370 | 39 248 328 555 405 509 286 Core 6 | 6 . . . . . . Treads 1041 | 33 248 328 353 79 . . Legs . | . . . . . . . Wheels 1323 | . . . 202 326 509 286 Hover . | . . . . . . . Flight . | . . . . . . . Fastest Speed 50 | 50 160 160 100 80 80 80 Average Speed 117 | 150 160 160 139 95 80 80 Slowest Speed 200 | 200 160 160 160 160 80 80 Overloaded Moves . | . . . . . . . Propulsion Burnouts . | . . . . . . . Robots Hopped . | . . . . . . . Cave-ins Triggered . | . . . . . . . Exploration Rate (%) 55 | 3 53 72 53 82 72 52 Regions Visited 6 Branch Regions 4 Pre-discovered Areas 2 | . . 1 . 1 . . Known Exits Taken . | . . . . . . . Unknown Exits Taken 6 | 1 1 1 1 1 1 . Scrap Searched 2 | . . . . 1 . 1 Spaces Dug . | . . . . . . . Terrain Destroyed 23 | . 5 . . 18 . . Melee . | . . . . . . . Projectile 2 | . . . . 2 . . AOE 21 | . 5 . . 16 . . Terrain Rammed . | . . . . . . . Walls Destroyed . | . . . . . . . Machines Disabled . | . . . . . . . Actions | -11 -10 -10 -9 -9 -9 -8 --------- Run | Scr Mat Min Mat Min Exi Min Total 2903 | 48 295 363 769 481 513 434 Wait 289 | . 36 11 101 7 . 134 Move 2364 | 38 247 327 554 404 508 286 Hop . | . . . . . . . Pick Up 32 | 4 4 6 11 6 1 . Fast Attach 19 | 6 1 2 3 6 . 1 Attach 11 | . 1 . 2 8 . . Detach 1 | . . . . 1 . . Swap 11 | . . . 8 1 1 1 Drop 26 | . . 4 16 1 3 2 Fire 148 | . 5 13 73 47 . 10 Melee . | . . . . . . . Ram . | . . . . . . . Kick . | . . . . . . . Crush 2 | . 1 . 1 . . . Escape Stasis . | . . . . . . . Rewire . | . . . . . . . Trap . | . . . . . . . Miscellaneous . | . . . . . . . Route ------- -11/Scrapyard -10/Materials (discovered 2 exits: *Mat / [*Min]) -10/Mines -9/Materials (discovered 2 exits: Mat / [*Min]) -9/Mines (discovered 4 exits: *Mat x2 / *Exi / [*Zio]) -9/Exiles -8/Mines History --------- Turn | Location | Event 26 | -11/Scrapyard | Discovered new exit (range 16) 72 | -11/Scrapyard | Entered Materials 235 | -10/Materials | Discovered new exit (range 3) 306 | -10/Materials | Build established: Mutant 351 | -10/Materials | Discovered new exit (range 8) 527 | -10/Materials | Entered Mines 766 | -10/Mines | Learned location of 1 exit from Materials 803 | -10/Mines | Found a damaged Exp. Sensor Array with a note attached 807 | -10/Mines | Found Prototype Device 807 | -10/Mines | Identified Exp. Sensor Array 992 | -10/Mines | Learned location of Zion (-7) 1091 | -10/Mines | Discovered new exit (range 11) 1111 | -10/Mines | Entered Materials 1111 | -9/Materials | Evolved 2 slots: Propulsion x1, Utility x1 1112 | -9/Materials | Identified exit to Materials 1333 | -9/Materials | Discovered new exit (range 14) 1773 | -9/Materials | Build established: Scavenger-Mutant 2236 | -9/Materials | Entered Mines 2274 | -9/Mines | Assembled infested the area 2338 | -9/Mines | Core integrity fell below 50% 2352 | -9/Mines | Discovered exit to Materials (range 9) 2356 | -9/Mines | Lost 8 parts (1p3n4w) 2527 | -9/Mines | Discovered exit to Materials (range 6) 2554 | -9/Mines | A Derelict revealed a hidden shortcut to a safe place 2584 | -9/Mines | Learned Materials interactive machine intel 2716 | -9/Mines | Core integrity fell below 20% 2755 | -9/Mines | Deemed a non-threat by the Exiles lab entrance 2756 | -9/Mines | Discovered new exit (range 5) 2759 | -9/Mines | Entered Exiles 2779 | -9/Exiles | Met 8R-AWN 2793 | -9/Exiles | Met EX-HEX 2815 | -9/Exiles | Met EX-BIN 2824 | -9/Exiles | Aligned with FarCom system 2825 | -9/Exiles | Given EX-Vault access code 2844 | -9/Exiles | Opened EX-Vault 2867 | -9/Exiles | Warned to stay clear of 0b10 Research branches 2892 | -9/Exiles | Met EX-DEC 3045 | -9/Exiles | Found Lightpack 2.0 3162 | -9/Exiles | Discovered new exit (range 12) 3170 | -9/Exiles | Left Exiles lab with Lightpack 2.0 3170 | -9/Exiles | Entered Mines 3561 | -8/Mines | Destroyed by exploding Plasma Injector Last Messages --------------- 03183_ Acquired 14 matter. 03184_ Dropped Lgt. Assault Rifle. 03346_ K-01 Serf collects debris. 03533_ Searching scrap... 03533_ Found EM Pulse Gun. 03533_ Found 15 Matter. 03534_ Acquired 10 matter. 03535_ Dropped Sml. Laser. 03535_ Acquired EM Pulse Gun. 03547_ Penetrated by Slug. 03550_ Slug penetrates Wall. 03553_ Penetrated by Slug. 03553_ EM Pulse Gun destroyed. 03556_ Penetrated by Slug. 03556_ Wheel destroyed. 03561_ Slug penetrates Plasma Injector. 03561_ Plasma Injector explodes. 03561_ H-55 Commando destroyed. 03561_ Wheel destroyed. 03561_ Plasma Injector explodes. Map ----- +----------------------------------------------------+ | ?????????????????????????????????????? | | ?????????????????????????????????????? | | ?????????????????????????????????????? | | ?????????????????????????????????????? | | ?????????????????????????????????????? | | ?????????????????????????????????????? | | ?????????????????????????????????????? | | ?????????????????????????????????????? | | ?????????????????????????????????????? | | ?????????????????????????????????????? | | ?????????????????????????????????????? | | ?????????????????????????????????????? | | ?????????????????????????????????????? | | ????????????????????????????????#????? | | ??????????????????????????????? #????? | | ??????????????????????????????? #????? | | ?????????????????????????????? #????? | | ????????????????????????###### ####?? | | ???????????####?????????# #?? | | ??????????## ##????????# #?? | | ??????##### #???????## #?? | | ?????## #???????#;*% #?? | | ???### """ ##???????#; [ #?? | | ??## """ #????????#; #?? | | ??# """ ##?????###; #?? | | ??# ### ####??# @ #?? | | ??# ##?## #??# #; #?? | | ??# #???## ## #??# #; #?? | | ??# #????## ##[#??# ## #?? | | ??# #?????# ## #### ## ??? | | ### #?????## ##% ## ???? | | #??????########## ## ???? | | ######???????????????# ############??? | | #????????????????????# #?????????????? | | #???????????????????? ?????????????? | | #??????????????s????? ?????????????? | | #???????????????s???? ?????????????? | | #????????????????????"""?????????????? | | #???????????????s????"""?????????????? | | ?????????????????????"""?????????????? | | ????????????????????? ?????????????? | | ?????????????????????????????????????? | | ?????????????????????????????????????? | | ?????????????????????????????????????? | | ?????????????????????????????????????? | | ?????????????????????????????????????? | | ?????????????????????????????????????? | | ?????????????????????????????????????? | | ?????????????????????????????????????? | | ?????????????????????????????????????? | +----------------------------------------------------+ Best States ------------- Heat Dissipation 42 Energy Generation 12 Energy Capacity 265 Matter Stores 300 Matter Capacity 300 Sight Range 16 Robot Scan Range 20 Terrain Scan Density 10 Evasion (%) 44 Targeting Accuracy 5 Recoil Reduction 3 Item Schematics ----------------- Hacking Suite | -9/Materials | Scanalyzed Robot Schematics ------------------ None Fabricated ------------ Nothing Alien Tech Used ----------------- None Achievements -------------- None Challenges ------------ None Game ------ Seed IntegrityLobotomySource Manual? 0 Play Time 00:27:54 Cumulative 22.3 hours Start 2021.12.26 @ 14:02:31 End 2021.12.26 @ 14:29:53 Sessions 1 Manual Loads 0 Difficulty Rogue Special Mode Winter2021/Sauler Game No. 17 Rogue 17 Adventurer 0 Explorer 0 Win Type - Total 0 Types 0/0/0/0/0/0/0/0/0 Lore% 30 Gallery% 31 Achievement% 29 Wizard Run 0 Options --------- ASCII 1 Keyboard 1 Movement Vi Keybinds 0 Fullscreen 1 Font 18/X11 Map View 76x50 Tactical HUD 1 Map Filters NONE Filters NONE Steam 1 RUN: 583ed368-ae35-4da0-8e98-f99956f5e5de